[Event "FIDE Candidates 2026"]
[White "Caruana,Fabiano"]
[Black "Nakamura,Hikaru"]
[Site "Agios Georgios Pegeia"]
[Round "1.1"]
[Annotator "TA"]
[Result "1-0"]
[Date "2026.03.29"]
[WhiteElo "2795"]
[BlackElo "2810"]
[PlyCount "165"]
[TimeControl "60"]

{[%evp 9,165,20,15,1,12,-8,-4,-9,0,-9,-8,-20,-17,-18,-10,-27,-16,-12,0,0,0,0,0,0,0,0,0,0,9,13,6,5,5,5,22,6,22,20,20,18,25,14,29,30,52,48,44,44,68,65,60,55,70,70,70,63,92,99,100,101,101,86,202,217,212,154,153,147,133,131,133,131,131,128,135,138,148,125,134,128,125,127,119,122,146,124,157,166,253,232,244,243,243,243,243,243,246,241,246,246,246,246,246,232,232,218,218,211,244,193,200,213,233,195,232,162,292,292,300,285,285,246,281,277,1649,276,276,200,211,248,252,200,187,146,309,308,292,285,194,194,194,194,370,193,742,151,976,429,151,100,100,100,747,747,735,735,1337,1274]} 1. Nf3 {[%emt 0:0:5]} d5 {[%emt 0:0:17]} 2. c4 {[%emt 0:0:5]} e6 {[%emt 0:0:9]} 3. g3 {[%emt 0:0:7]} d4 {[%emt 0:0:27]} 4. Bg2 {[%emt 0:0:35]} Nc6 {[%emt 0:0:5]} 5. O-O {[%emt 0:1:4]} Bc5 {[%emt 0:0:21]} 6. e3 {[%emt 0:5:16] A13: English Opening: 1...e6.} Nge7 {[%emt 0:2:37][%cal Bg8e7,Be7f5,Bf5d4][%mdl 32]} 7. Nxd4 $5 {[%emt 0:0:21][%mdl 4] A promising side line.} Nxd4 {[%emt 0:0:12]} 8. b4 {[%emt 0:0:12] The position is equal.} Bxb4 {[%emt 0:0:5]} 9. exd4 {[%emt 0:0:4] [#] Hoping for Qa4+.} O-O {[%emt 0:2:50]} 10. Qb3 $146 {[%emt 0:9:40]} ({Predecessor:} 10. Bb2 c6 11. Qb3 Ba5 12. Nc3 Nf5 13. Ne2 Bxd2 14. Rfd1 Bg5 15. a4 Bf6 16. a5 {1-0 Strybuk,A (2437)-Svane,R (2624) Titled Tuesday intern op 07th Jan Early blitz 2025 (11)} )Ba5 {[%emt 0:1:29][%cal Oe7f5]} 11. Nc3 {[%emt 0:0:28]} Nf5 {[%emt 0:16:35]} 12. Ba3 {[%emt 0:2:29]} Re8 {[%emt 0:5:39]} 13. d5 {[%emt 0:0:28]} Nd4 {[%emt 0:20:49]} 14. Qa4 {[%emt 0:1:57]} b6 {[%emt 0:0:29]} 15. Rae1 {[%emt 0:38:8]} Bd7 {[%emt 0:1:15]} 16. Qd1 {[%emt 0:1:43]} c5 {[%emt 0:0:4]} 17. Bb2 {[%emt 0:17:3]} Rb8 {[%emt 0:5:13]} 18. a4 {[%emt 0:12:32]} a6 {[%emt 0:4:31] Inhibits Nb5.} 19. dxe6 {[%emt 0:2:16]} Bxe6 {[%emt 0:18:30]} 20. Nd5 {[%emt 0:0:18]} Qd6 {[%emt 0:0:16]} 21. Bxd4 {[%emt 0:11:21]} cxd4 {[%emt 0:0:40]} 22. Re4 {[%emt 0:0:3]} Bxd5 {[%emt 0:3:34]} 23. Rxe8+ {[%emt 0:0:12]} Rxe8 {[%emt 0:0:4]} 24. Bxd5 {[%emt 0:0:3]} Bb4 {[%emt 0:3:26]} 25. h4 {[%emt 0:0:27][%cal Bh2h4,Bh4h5][%mdl 32]} a5 {[%emt 0:0:31]} 26. d3 {[%emt 0:0:17]} Qf6 {[%emt 0:0:47]} 27. Kg2 {[%emt 0:0:14]} Qe5 {[%emt 0:10:10]} 28. Qf3 {[%emt 0:1:30]} Qf6 {[%emt 0:5:39]} 29. Qg4 {[%emt 0:0:4]} Bc5 {[%emt 0:0:42]} 30. h5 {[%emt 0:0:27] Black is weak on the light squares} h6 {[%emt 0:1:8]} 31. Rh1 {[%emt 0:0:10]} Qg5 {[%emt 0:0:15]} 32. Qd1 {[%emt 0:2:48]} Qe7 {[%emt 0:0:2]} 33. Bc6 {[%emt 0:0:38]} Rc8 {[%emt 0:0:12]} 34. Re1 {[%emt 0:1:15]} Qc7 {[%emt 0:2:0]} 35. Bd5 {[%emt 0:0:18]} Kf8 {[%emt 0:0:5]} (35... Qd7 $16 36. Re4 Re8 )36. Qg4 $18 {[%emt 0:0:31]} Rd8 {[%emt 0:0:28]} 37. Qe4 {[%emt 0:2:13]} Kg8 {[%emt 0:0:15] Prevents Qh7+.} 38. Qf5 {[%emt 0:0:5]} Qd7 {[%emt 0:0:10]} 39. Qf3 {[%emt 0:0:53]} Rf8 {[%emt 0:2:29]} 40. Re5 {[%emt 0:0:0][%cal Be1e5,Be5f5,Bf5f3][%mdl 32]} Bd6 {[%emt 0:0:0]} 41. Rf5 {[%emt 0:2:2]} Qe7 {[%emt 0:4:9]} 42. Qg4 {[%emt 0:2:56]} Be5 {[%emt 0:0:50][%cal Bd6e5,Be5f6,Bf6g5][%mdl 32]} 43. Rf3 {[%emt 0:0:28]} Bf6 {[%emt 0:2:7]} 44. Rf4 {[%emt 0:0:37]} Qd8 {[%emt 0:1:14]} 45. Be4 {[%emt 0:3:24] White is much more active.} Re8 {[%emt 0:5:4]} 46. Rf5 {[%emt 0:3:8]} Qd7 {[%emt 0:8:51]} 47. Qf4 {[%emt 0:1:0]} Bg5 {[%emt 0:3:10]} 48. Qf3 {[%emt 0:0:12]} Qc7 {[%emt 0:0:3]} (48... Rf8 49. Rb5 Bd8 )49. Rxf7 {[%emt 0:2:53]} Qxf7 {[%emt 0:0:14]} 50. Bd5 {[%emt 0:0:1]} Re6 {[%emt 0:0:5]} 51. Qg4 {[%emt 0:0:5]} Kf8 {[%emt 0:0:2]} 52. Bxe6 {[%emt 0:0:6][%mdl 4096] Endgame KQB-KQB. White is a pawn up.} Qe8 {[%emt 0:0:4]} 53. Bd7 {[%emt 0:1:49]} Qa8+ {[%emt 0:1:43]} 54. Kg1 {[%emt 0:0:24]} Bf6 {[%emt 0:0:4]} 55. Qe6 {[%emt 0:1:36]} Qd8 {[%emt 0:0:1]} 56. Bc6 {[%emt 0:2:42]} Qe7 {[%emt 0:0:13]} 57. Qc8+ {[%emt 0:2:32]} Qd8 {[%emt 0:0:1]} 58. Qb7 {[%emt 0:0:7]} Be5 {[%emt 0:2:51]} 59. Bd5 {[%emt 0:0:58]} Qc7 {[%emt 0:1:2]} 60. Qa8+ {[%emt 0:0:5]} Ke7 {[%emt 0:0:4][%cal Oe5g3]} 61. Qg8 {[%emt 0:1:49]} Kd6 {[%emt 0:0:18]} 62. Be4 {[%emt 0:3:23]} Ke7 {[%emt 0:4:17]} (62... Kc5 63. Qd5+ Kb4 64. Qb5+ Ka3 )63. Bg6 {[%emt 0:0:18]} Bf6 {[%emt 0:1:52]} 64. Qf7+ {[%emt 0:2:37]} Kd6 {[%emt 0:0:3]} 65. Qd5+ {[%emt 0:0:2]} Ke7 {[%emt 0:0:1]} 66. Bf5 {[%emt 0:0:21] Prevents Qd7} Be5 $2 {[%emt 0:3:31] [#]} (66... Kf8 67. Qe6 Qe5 )67. f4 $2 {[%emt 0:2:4]} (67. Qe6+ Kd8 68. f4 )Bf6 {[%emt 0:0:19]} 68. Kg2 {[%emt 0:0:12]} Qd6 {[%emt 0:1:18]} 69. Qb7+ {[%emt 0:0:6]} Kf8 {[%emt 0:0:1]} 70. Kf3 {[%emt 0:1:10]} Qe7 {[%emt 0:0:14]} 71. Qe4 {[%emt 0:3:1]} (71. Qxb6 Qe3+ 72. Kg2 Qe2+ 73. Kg1 Qe1+ 74. Kh2 Qe2+ 75. Kg1 Qe1+ 76. Kg2 Qe2+ 77. Kg1 $11 )Qxe4+ $2 {[%emt 0:0:2]} (71... Qf7 $16 {might work better.} )72. dxe4 $16 {[%emt 0:0:39] KB-KB. White is a pawn up.} (72. Bxe4 Be7 73. Bf5 Bc5 $16 )(72. Kxe4 $2 Ke7 73. Kd5 Ke8 $16 )Be7 {[%emt 0:2:47]} 73. e5 {[%emt 0:0:4]} Bb4 {[%emt 0:0:1]} 74. Bd3 {[%emt 0:0:6]} Be1 {[%emt 0:0:24]} 75. g4 {[%emt 0:0:7]} Ke7 $2 {[%emt 0:2:1]} (75... Bd2 76. Ke4 Kf7 )76. Ke4 $18 {[%emt 0:0:3]} Bg3 $2 {[%emt 0:0:7]} (76... Ke8 77. g5 (77. Kxd4 $2 Bd2 $18 )hxg5 78. fxg5 Bd2 )77. f5 $2 {[%emt 0:1:5]} (77. g5 $18 {has better winning chances.} hxg5 78. fxg5 )Kd7 $2 {[%emt 0:1:35]} (77... Bh4 $16 78. Kxd4 Kd7 )78. Kd5 {[%emt 0:5:32]} (78. g5 $142 )Bh4 $2 {[%emt 0:0:18]} (78... Bf4 $18 79. Kxd4 Bc1 )79. f6 {[%emt 0:0:47]} (79. c5 $142 bxc5 80. Bb5+ (80. Kxc5 Bg5 $16 )Ke7 81. Kxc5 )gxf6 $16 {[%emt 0:0:29]} 80. e6+ {[%emt 0:0:2]} ({Don't play} 80. Kxd4 $6 fxe5+ 81. Kd5 (81. Kxe5 Kc6 $11 )e4 82. Bxe4 Be7 $14 )Ke7 $2 {[%emt 0:0:23][%mdl 8192]} (80... Kc7 $16 )81. Kc6 $18 {[%emt 0:0:5] White is clearly winning.} Kxe6 {[%emt 0:3:46]} 82. Kxb6 {[%emt 0:0:3]} Be1 {[%emt 0:0:12]} 83. c5 {[%emt 0:1:4] Weighted Error Value: White=0.05 (flawless) /Black=0.09 (flawless)   Loses game:     	---       	Black=3      Missed win:     	White=1     	---        Mistake:       	White=1     	Black=7      Inaccurate:     	White=2     	Black=1      OK:         	White=13    	Black=8      Best:        	---       	Black=1} 1-0

[Event "FIDE Candidates 2026"]
[White "Praggnanandhaa R"]
[Black "Giri,Anish"]
[Site "Agios Georgios Pegeia"]
[Round "1.2"]
[Annotator "TA"]
[Result "1-0"]
[Date "2026.03.29"]
[WhiteElo "2741"]
[BlackElo "2753"]
[PlyCount "101"]
[TimeControl "60"]

{[%evp 9,100,9,12,-3,4,-6,0,-31,-33,-41,-35,-67,-67,-56,20,23,31,25,35,21,27,33,28,21,15,10,15,26,17,6,2,0,37,37,37,34,36,31,47,45,47,54,36,50,67,52,41,44,54,43,40,37,65,52,62,58,52,58,109,102,98,104,96,88,197,187,198,191,206,199,199,202,206,195,209,202,201,197,195,195,229,230,210,198,407,426,549,532,1681,1791,1198,1156,29964]} 1. e4 {[%emt 0:0:33]} c5 {[%emt 0:0:14]} 2. Nc3 {[%emt 0:0:25]} d6 {[%emt 0:0:19]} 3. f4 {[%emt 0:0:24]} g6 {[%emt 0:0:41]} 4. Nf3 {[%emt 0:0:10]} Bg7 {[%emt 0:0:24]} 5. Bb5+ {[%emt 0:0:13]} Bd7 {[%emt 0:0:17]} 6. a4 {[%emt 0:0:15] B23: Closed Sicilian: Lines without g3.} Nc6 {[%emt 0:5:32]} 7. O-O {[%emt 0:0:11]} a6 {[%emt 0:1:50]} 8. Bc4 {[%emt 0:0:8] The position is equal.} e6 {[%emt 0:2:34]} 9. d3 {[%emt 0:0:28][%cal Of4f5]} Nge7 {[%emt 0:1:59]} 10. f5 {[%emt 0:0:12]} exf5 {[%emt 0:3:12]} 11. Qe1 {[%emt 0:1:53]} Be6 {[%emt 0:3:48]} (11... Nb4 $15 12. Qf2 Be6 )12. exf5 $11 {[%emt 0:0:19]} gxf5 $146 {[%emt 0:2:29]} ({Predecessor:} 12... Bxc4 13. dxc4 Qd7 14. Nd5 gxf5 15. Bh6 Bxh6 16. Nf6+ Kd8 17. Nxd7 Kxd7 18. Rd1 Rae8 19. Ne5+ Nxe5 20. Qxe5 Nc8 21. Qxf5+ {1-0 Weeramantry,S (2047)-Lundstrom,B (1883) Denver op 2019 (2)} )13. Bxe6 {[%emt 0:0:17]} fxe6 {[%emt 0:0:5]} 14. Qxe6 {[%emt 0:0:7]} Qd7 {[%emt 0:2:24]} 15. Qc4 {[%emt 0:0:49]} O-O-O {[%emt 0:12:53]} 16. Bg5 {[%emt 0:2:57]} Rde8 {[%emt 0:8:12]} 17. Rae1 {[%emt 0:2:27]} Ng6 {[%emt 0:17:36]} 18. Nd5 {[%emt 0:0:58]} Kb8 {[%emt 0:2:24]} 19. Nf6 {[%emt 0:0:57]} Bxf6 {[%emt 0:0:21]} 20. Bxf6 {[%emt 0:0:5]} Rhf8 {[%emt 0:0:34]} 21. Bc3 {[%emt 0:3:37]} f4 {[%emt 0:2:20]} 22. Rxe8+ {[%emt 0:22:15]} Rxe8 {[%emt 0:1:13]} 23. Re1 {[%emt 0:5:6]} Rf8 {[%emt 0:1:13]} 24. Qe6 {[%emt 0:7:22]} Qxe6 {[%emt 0:7:11]} 25. Rxe6 {[%emt 0:0:40]} Kc7 {[%emt 0:0:1]} 26. Ng5 {[%emt 0:8:42]} Kd7 {[%emt 0:1:1] [#] ...Rf5 is the strong threat.} 27. Re4 {[%emt 0:8:25] White is more active.} Rf5 {[%emt 0:9:39]} 28. Nxh7 {[%emt 0:2:7]} d5 {[%emt 0:0:10]} 29. Re2 {[%emt 0:4:52]} d4 {[%emt 0:1:48]} 30. Be1 {[%emt 0:6:19]} Nce5 {[%emt 0:5:24]} 31. Re4 {[%emt 0:5:35]} Ng4 {[%emt 0:8:42]} 32. h3 {[%emt 0:7:29][%cal Bh2h3,Bh3h4,Bh4h5,Bh5h6][%mdl 32]} Ne3 {[%emt 0:0:27]} 33. c3 {[%emt 0:0:48]} Nd5 {[%emt 0:5:53] [#] White stays focused until the end.} ({Black should try} 33... dxc3 $14 34. bxc3 (34. Bxc3 $2 Nd5 $16 )b5 )34. h4 $1 $16 {[%emt 0:4:37]} ({Worse is} 34. cxd4 Rh5 35. dxc5 Rxh7 $17 )dxc3 {[%emt 0:2:4]} 35. bxc3 {[%emt 0:0:18]} Rh5 {[%emt 0:1:42]} 36. Ng5 {[%emt 0:0:55]} Nf6 {[%emt 0:1:39]} (36... b5 $16 {might work better.} 37. c4 Nc7 38. cxb5 axb5 39. axb5 Nxb5 )37. Re6 $18 {[%emt 0:3:9]} Rxg5 {[%emt 0:0:3]} 38. Rxf6 {[%emt 0:0:4][%mdl 4096] Endgame KRB-KRN. White is a pawn up.} Rg4 {[%emt 0:0:3]} 39. h5 {[%emt 0:4:42]} Ne5 {[%emt 0:0:31]} 40. h6 {[%emt 0:0:0]} Nf3+ {[%emt 0:0:0]} 41. Kf1 {[%emt 0:9:59]} Nxe1 {[%emt 0:5:19]} 42. Kxe1 {[%emt 0:9:29]} Rxg2 {[%emt 0:3:3]} 43. Rxf4 {[%emt 0:0:25] KR-KR. White is a pawn up.} Rh2 {[%emt 0:0:31] Against Rh4} 44. Rf6 {[%emt 0:0:35]} Rh3 {[%emt 0:10:28]} 45. Kd2 {[%emt 0:3:33]} Rh2+ {[%emt 0:0:40]} 46. Ke3 {[%emt 0:3:28]} Rh3+ $2 {[%emt 0:4:8]} (46... b5 47. Rxa6 b4 48. cxb4 cxb4 )47. Ke4 {[%emt 0:3:15]} c4 {[%emt 0:4:23]} 48. dxc4 {[%emt 0:3:17]} Rxc3 {[%emt 0:0:11]} 49. Kf5 {[%emt 0:1:25]} Ke7 {[%emt 0:3:40]} 50. Rb6 {[%emt 0:3:42]} Rxc4 {[%emt 0:0:43]} 51. h7 {[%emt 0:0:41] Weighted Error Value: White=0.03 (flawless) /Black=0.46   Mistake:       	---       	Black=4      Inaccurate:     	White=2     	Black=3      OK:         	White=2     	Black=3      Best:        	---       	Black=2      Strong:       	White=1     	---} 1-0

[Event "FIDE Candidates 2026"]
[White "Sindarov,Javokhir"]
[Black "Esipenko,Andrey"]
[Site "Agios Georgios Pegeia"]
[Round "1.4"]
[Annotator "TA"]
[Result "1-0"]
[Date "2026.03.29"]
[WhiteElo "2745"]
[BlackElo "2698"]
[PlyCount "81"]
[TimeControl "60"]

{[%evp 16,80,24,4,4,2,2,14,16,0,0,-13,0,10,6,0,0,-18,-14,-21,-13,-18,-19,-46,-12,-6,-20,-56,-40,-74,-54,-63,-57,-75,-74,-78,-57,-68,-78,-88,0,0,0,0,0,0,0,0,79,63,398,398,503,489,801,800,952,951,1856,1505,1991,1991,5273,909,1403,0,1678]} 1. d4 {[%emt 0:0:4]} d5 {[%emt 0:0:30]} 2. c4 {[%emt 0:0:10]} e6 {[%emt 0:0:8]} 3. Nf3 {[%emt 0:0:11]} Nf6 {[%emt 0:0:8]} 4. Nc3 {[%emt 0:0:5]} Be7 {[%emt 0:0:13]} 5. cxd5 {[%emt 0:0:45]} exd5 {[%emt 0:0:8]} 6. Bf4 {[%emt 0:0:4]} O-O {[%emt 0:0:31]} 7. e3 {[%emt 0:2:46]} c5 {[%emt 0:0:19]} 8. Bd3 {[%emt 0:6:7]} Nc6 {[%emt 0:0:39]} 9. O-O {[%emt 0:0:5]} c4 {[%emt 0:2:10] D35: Queen's Gambit Declined: Exchange Variation.} 10. Bc2 {[%emt 0:0:7]} Nh5 {[%emt 0:0:32]} 11. Be5 {[%emt 0:5:56]} f6 {[%emt 0:2:32] The position is equal.} 12. Bg3 $146 {[%emt 0:1:28]} ({Predecessor:} 12. Ng5 g6 13. Nxh7 fxe5 14. Nxf8 Bxf8 15. dxe5 Be6 16. Bxg6 Ng7 17. f4 Bc5 18. f5 Bxe3+ {1-0 Olafsson,H (2510)-Einarsson,H (2215) Reykjavik op 1988 (9)} )f5 {[%emt 0:5:52]} 13. Be5 {[%emt 0:13:20]} Be6 {[%emt 0:5:9]} 14. b3 {[%emt 0:16:5]} Qa5 {[%emt 0:5:57]} 15. Ne2 {[%emt 0:0:15]} b5 {[%emt 0:14:45]} 16. Nf4 {[%emt 0:11:47]} Nxf4 {[%emt 0:0:44]} 17. exf4 {[%emt 0:0:3]} Qd8 {[%emt 0:9:26]} 18. Re1 {[%emt 0:0:49]} Qd7 {[%emt 0:2:43]} 19. Re3 {[%emt 0:0:42]} Rae8 {[%emt 0:15:8]} (19... a6 $5 )20. h4 {[%emt 0:2:53]} h6 {[%emt 0:4:37]} 21. g3 {[%emt 0:7:43]} a6 {[%emt 0:4:5]} 22. Kg2 {[%emt 0:20:29]} Bf7 {[%emt 0:2:20]} 23. Qd2 {[%emt 0:5:25]} Bb4 {[%emt 0:3:17]} 24. Qe2 {[%emt 0:3:56]} Bh5 {[%emt 0:3:46]} 25. a4 {[%emt 0:1:52]} Ba5 {[%emt 0:3:58]} 26. axb5 {[%emt 0:4:10]} axb5 {[%emt 0:0:22]} 27. Bd1 {[%emt 0:6:4]} Bxf3+ {[%emt 0:7:41]} (27... Bb6 $17 {[%cal Ob6d4] And now ...Bxd4! would win.} 28. Qb2 b4 )28. Qxf3 $11 {[%emt 0:0:5]} Bb6 {[%emt 0:16:8]} 29. Ra6 {[%emt 0:0:6]} Nxd4 {[%emt 0:1:32]} 30. Qh5 {[%emt 0:1:13]} (30. Bxd4 {simplifies} Bxd4 31. Rxe8 Rxe8 32. Qh5 )Rxe5 {[%emt 0:1:9]} 31. Rxe5 {[%emt 0:0:5]} Qc6 {[%emt 0:0:40]} (31... Bc7 $11 {remains equal.} 32. Re3 b4 )32. bxc4 {[%emt 0:2:19]} bxc4 {[%emt 0:0:13][%mdl 8192]} (32... dxc4+ $14 33. Bf3 Qf6 )33. Ba4 $18 {[%emt 0:0:38]} Qc5 {[%emt 0:1:38]} 34. Qg6 {[%emt 0:0:55] Inhibits Nc6.} Ba7 {[%emt 0:0:30]} (34... Bd8 $142 35. Bc6 Nxc6 )35. Re8 {[%emt 0:0:40][%cal Oa6a7] [#] Intending Rxa7! and mate.} Rxe8 {[%emt 0:0:2]} 36. Qxe8+ {[%emt 0:0:5]} Kh7 {[%emt 0:0:3]} 37. Qg6+ {[%emt 0:0:4]} Kg8 {[%emt 0:0:2]} 38. Bd7 {[%emt 0:0:19]} c3 {[%emt 0:0:13]} 39. Qe8+ {[%emt 0:0:5]} (39. Rc6 $142 Qxc6 40. Bxc6 Nxc6 41. Qxc6 )Kh7 {[%emt 0:0:1]} 40. Qg6+ {[%emt 0:0:0]} Kg8 $1 {[%emt 0:0:0]} 41. Re6 {[%emt 0:2:51] Weighted Error Value: White=0.68/Black=1.21   Loses game:     	---       	Black=1      Mistake:       	---       	Black=3      Inaccurate:     	White=3     	Black=1      OK:         	White=4     	Black=4} 1-0

[Event "FIDE Candidates 2026"]
[White "Wei,Yi"]
[Black "Praggnanandhaa R"]
[Site "Agios Georgios Pegeia"]
[Round "2.1"]
[Annotator "TA"]
[Result "1/2-1/2"]
[Date "2026.03.30"]
[WhiteElo "2754"]
[BlackElo "2741"]
[PlyCount "91"]
[TimeControl "60"]

{[%evp 15,90,0,18,0,-7,0,6,1,6,-18,0,-35,-33,-29,-20,-26,-20,-26,-24,-26,6,0,0,0,0,-11,-8,-18,-12,-12,-19,-42,-39,-42,-36,-36,-44,-36,-19,-53,-53,-53,-53,-53,-53,-53,-53,-54,-54,-54,-54,-54,-54,-54,-48,-54,-54,-54,-53,-53,-53,-53,-53,-53,-53,-53,-53,-53,-53,-53,0,0,0,-53,-53,-53,-53]} 1. e4 {[%emt 0:0:6]} e6 {[%emt 0:1:16]} 2. d4 {[%emt 0:0:9]} d5 {[%emt 0:0:14]} 3. Nc3 {[%emt 0:0:22]} Nf6 {[%emt 0:0:37]} 4. e5 {[%emt 0:0:19]} Nfd7 {[%emt 0:0:8]} 5. f4 {[%emt 0:0:7]} c5 {[%emt 0:0:7]} 6. Nf3 {[%emt 0:0:11]} Nc6 {[%emt 0:0:11]} 7. Be3 {[%emt 0:0:7]} Be7 {[%emt 0:0:41]} 8. Qd2 {[%emt 0:3:34]} a6 {[%emt 0:0:31]} 9. Bd3 {[%emt 0:7:32] C11: French: Classical System: 4 e5 and 4 Bg5 dxe4.} O-O {[%emt 0:0:57]} 10. O-O {[%emt 0:12:18]} f6 {[%emt 0:2:49]} 11. exf6 {[%emt 0:22:13] The position is equal.} Nxf6 {[%emt 0:0:59]} 12. Kh1 {[%emt 0:0:42]} ({And not} 12. dxc5 d4 13. Bf2 dxc3 14. bxc3 Qd5 $19 )b6 {[%emt 0:1:26]} (12... c4 $5 13. Be2 $8 Bb4 $11 )13. Ne5 {[%emt 0:8:42]} Qc7 {[%emt 0:9:56]} 14. Rae1 $146 {[%emt 0:8:58]} ({Predecessor:} 14. Nxc6 Qxc6 15. Rae1 c4 16. Be2 b5 17. Bf3 b4 18. Ne2 {0-1 Heyn,W (1972)-Ress,J (2156) SA-2013-0-00348} )Bd6 {[%emt 0:1:56]} 15. Nxc6 {[%emt 0:5:55]} Qxc6 {[%emt 0:0:54]} 16. Be2 {[%emt 0:0:16]} Ra7 {[%emt 0:6:54]} 17. Bf3 {[%emt 0:1:45][%cal Of4f5]} Raf7 {[%emt 0:5:45]} 18. f5 {[%emt 0:13:15]} c4 {[%emt 0:36:9]} 19. Bg5 {[%emt 0:5:11]} Bb4 $1 {[%emt 0:2:45]} 20. Qe2 {[%emt 0:9:21][%cal Rf5e6]} Bxc3 {[%emt 0:12:27]} 21. fxe6 {[%emt 0:0:8]} Re7 {[%emt 0:1:5]} 22. bxc3 {[%emt 0:0:15] [#] Black must now prevent Bg4.} Rxe6 {[%emt 0:0:6]} 23. Qd2 {[%emt 0:1:23]} Ne4 {[%emt 0:3:23]} 24. Bxe4 {[%emt 0:0:7]} Rxf1+ {[%emt 0:0:15]} 25. Rxf1 {[%emt 0:0:4]} Rxe4 {[%emt 0:0:5]} 26. Bf4 {[%emt 0:3:24]} Re7 {[%emt 0:2:15]} 27. Be5 {[%emt 0:0:22] Opposite bishops and equal position} Qg6 {[%emt 0:0:34] Prevents Qg5.} 28. Qf4 {[%emt 0:0:37]} Rf7 {[%emt 0:0:23] Successful Defense Black} 29. Qxf7+ {[%emt 0:0:4]} Qxf7 {[%emt 0:0:2]} 30. Rxf7 {[%emt 0:0:4]} Kxf7 $15 {[%emt 0:0:4][%mdl 4096] Endgame KB-KB} 31. Kg1 {[%emt 0:0:25]} Bf5 {[%emt 0:0:15]} 32. Kf2 {[%emt 0:0:7]} Bxc2 {[%emt 0:0:6]} 33. Bc7 {[%emt 0:0:26]} b5 {[%emt 0:0:5]} 34. a3 {[%emt 0:0:12]} Ke6 {[%emt 0:0:9]} 35. Ke3 {[%emt 0:0:3]} Kf5 {[%emt 0:0:39]} 36. h3 {[%emt 0:3:36]} h5 {[%emt 0:1:9]} 37. g3 {[%emt 0:0:11]} g5 {[%emt 0:0:35]} 38. Bd8 {[%emt 0:0:6]} Bd3 {[%emt 0:0:18]} 39. h4 {[%emt 0:0:8]} Kg4 {[%emt 0:0:57]} 40. Bxg5 {[%emt 0:0:0]} Kxg3 {[%emt 0:0:0]} 41. Bd8 {[%emt 0:0:34]} Be4 {[%emt 0:1:51]} 42. Be7 {[%emt 0:0:15]} Kg2 {[%emt 0:0:8]} (42... Bf5 $15 )43. Bd8 $11 {[%emt 0:0:17]} Kf1 {[%emt 0:0:22]} 44. Kd2 {[%emt 0:0:2]} (44. Kf4 $11 )Kf2 $15 {[%emt 0:0:4]} 45. Be7 {[%emt 0:0:5]} Kf3 {[%emt 0:0:4]} 46. Bd8 {[%emt 0:0:4] Weighted Error Value: White=0.07 (flawless) /Black=0.03 (flawless)   Mistake:       	White=1     	Black=1      Inaccurate:     	White=2     	Black=1      OK:         	White=5     	Black=5      Strong:       	---       	Black=1} 1/2-1/2

[Event "FIDE Candidates 2026"]
[White "Sindarov,Javokhir"]
[Black "Bluebaum,Matthias"]
[Site "Agios Georgios Pegeia"]
[Round "2.2"]
[Annotator "TA"]
[Result "1/2-1/2"]
[Date "2026.03.30"]
[WhiteElo "2745"]
[BlackElo "2698"]
[PlyCount "84"]
[TimeControl "60"]

{[%evp 9,84,22,22,14,20,19,20,12,27,25,33,28,32,16,19,17,29,5,7,5,39,38,81,55,54,56,50,51,54,52,57,52,50,44,69,17,16,20,19,20,20,20,23,23,33,20,34,40,30,25,25,20,32,32,32,32,32,32,32,32,33,0,0,0,0,0,0,0,0,0,0,0,0,0,0,0,0]} 1. e4 {[%emt 0:0:4]} e5 {[%emt 0:0:10]} 2. Nf3 {[%emt 0:0:13]} Nf6 {[%emt 0:0:5]} 3. Nxe5 {[%emt 0:0:7]} d6 {[%emt 0:0:4]} 4. Nd3 {[%emt 0:0:17]} Nxe4 {[%emt 0:0:11]} 5. Qe2 {[%emt 0:0:9]} Qe7 {[%emt 0:0:7]} 6. Nf4 {[%emt 0:0:20] C42: Petroff Defence: 3 Nxe5 and unusual White 3rd moves.} c6 {[%emt 0:3:6] Prevents Nd5.} 7. f3 {[%emt 0:6:52]} Nf6 {[%emt 0:0:5]} 8. d4 {[%emt 0:0:41]} Bf5 {[%emt 0:1:55][%cal Bc8f5,Bf5h7,Bh7g6][%mdl 32]} 9. c3 {[%emt 0:2:14]} Qxe2+ {[%emt 0:1:59]} 10. Bxe2 {[%emt 0:0:18]} h5 {[%emt 0:0:15]} 11. Na3 $146 {[%emt 0:4:10]} ({Predecessor:} 11. Kf2 Nbd7 12. h4 O-O-O 13. Nd2 d5 14. Nf1 Bd6 15. Ng3 Bc2 16. Bd2 Nf8 17. Rac1 Bxf4 18. Bxf4 {1-0 Sivuk,V (2514)-Kacharava,N (2424) EU-ch 20th Skopje 2019 (8)} )Na6 {[%emt 0:5:58][%cal Bb8a6,Ba6c7,Bc7e6][%mdl 32]} 12. Nc4 {[%emt 0:9:18]} Nc7 {[%emt 0:1:37]} 13. Ne3 {[%emt 0:0:11]} Bh7 {[%emt 0:18:54]} 14. h4 {[%emt 0:1:10]} Kd7 {[%emt 0:0:31]} 15. Kf2 {[%emt 0:2:41]} Re8 {[%emt 0:8:39]} 16. g3 {[%emt 0:6:40]} Ne6 {[%emt 0:6:34]} 17. Nh3 {[%emt 0:1:41][%cal Od4d5]} d5 {[%emt 0:8:59]} 18. Ng5 {[%emt 0:2:37]} Bg6 {[%emt 0:0:13]} 19. Bf1 {[%emt 0:0:13][%cal Be2f1,Bf1h3,Bh3f5,Bf5c2][%mdl 32]} Nh7 {[%emt 0:8:22]} 20. Bh3 {[%emt 0:12:56]} Nhxg5 {[%emt 0:1:31]} 21. hxg5 {[%emt 0:0:7]} Kc7 {[%emt 0:2:0]} 22. Nf5 {[%emt 0:1:11]} ({Better is} 22. Ng2 $14 )Bxf5 $11 {[%emt 0:4:49]} 23. Bxf5 {[%emt 0:0:18]} g6 {[%emt 0:0:1]} 24. Bc2 {[%emt 0:4:14]} Bd6 {[%emt 0:10:20]} 25. Be3 {[%emt 0:1:32][%cal Bc1e3,Be3f2,Bf2e1,Be1d2][%mdl 32]} Re7 {[%emt 0:2:22]} 26. Rae1 {[%emt 0:3:1]} Rhe8 {[%emt 0:0:7]} 27. f4 {[%emt 0:6:5]} Ng7 {[%emt 0:0:27]} 28. Kf3 {[%emt 0:2:49]} Kd7 {[%emt 0:6:10]} 29. Bf2 {[%emt 0:0:34]} Rxe1 {[%emt 0:0:5]} 30. Bxe1 {[%emt 0:0:14]} Rf8 {[%emt 0:5:42]} 31. g4 {[%emt 0:5:9]} f5 {[%emt 0:2:49]} 32. gxh5 {[%emt 0:0:25]} Nxh5 {[%emt 0:0:2]} 33. Bd2 {[%emt 0:0:46]} Rh8 {[%emt 0:1:20]} 34. Bd3 {[%emt 0:0:59]} Rh7 {[%emt 0:3:4]} 35. Bxf5+ {[%emt 0:1:36]} gxf5 {[%emt 0:0:4] The position is equal.} 36. g6 {[%emt 0:0:6]} Rg7 {[%emt 0:0:8]} 37. Rxh5 {[%emt 0:0:9][%mdl 4096] Endgame KRB-KRB. White is a pawn up.} Ke6 $1 {[%emt 0:0:2]} 38. Rh6 {[%emt 0:9:40]} Kf6 {[%emt 0:0:9]} 39. Be1 {[%emt 0:0:6]} Rxg6 {[%emt 0:0:5]} 40. Rh7 {[%emt 0:0:0]} Rg7 {[%emt 0:0:0]} 41. Rh6+ {[%emt 0:0:25]} Rg6 {[%emt 0:0:31]} 42. Rh7 {[%emt 0:0:13]} Rg7 {[%emt 0:0:5] Weighted Error Value: White=0.06 (flawless) /Black=0.05 (flawless)   Mistake:       	White=1     	---        Inaccurate:     	White=2     	Black=2      OK:         	White=9     	Black=10     Best:        	White=1     	Black=1      Strong:       	---       	Black=1} 1/2-1/2